fUSD/lending_fUSD_20240404
["ID","MTS","AMOUNT","RATE_DAILY","PERIOD"]
[321456034,1712200271585,-530.78597676,0.00054794,120]
[321456035,1712200271595,-500.0,0.00054794,120]
[321456036,1712200271604,-306.05814209,0.00054794,120]
[321456037,1712200271614,-500.0,0.00054794,2]
[321456038,1712200271624,-500.0,0.00054794,120]
[321456039,1712200271633,-500.0,0.00054794,120]
[321456040,1712200271643,-1234.52,0.00054794,120]
[321456041,1712200271652,-2833.97,0.00054794,120]
[321456042,1712200271662,-1217.52,0.00054794,120]
[321456043,1712200271671,-500.0,0.00054794,120]
[321456044,1712200271681,-500.0,0.00054794,120]
[321456045,1712200271690,-603.02,0.00054794,120]
[321456046,1712200271700,-500.0,0.00054794,120]
[321456047,1712200271710,-500.0,0.00054794,120]
[321456048,1712200271720,-516.97,0.00054794,120]
[321456049,1712200271731,-500.0,0.00054794,120]
[321456050,1712200271742,-635.94,0.00054794,120]
[321456051,1712200271751,-500.0,0.00054794,120]
[321456052,1712200271760,-1858.09,0.00054794,120]
[321456053,1712200271770,-151.0,0.00054794,120]
[321456054,1712200271779,-1287.0,0.00054794,120]
[321456055,1712200271790,-514.19254746,0.00054794,120]
[321456056,1712200271799,-500.0,0.00054794,120]
[321456057,1712200271809,-151.0,0.00054794,120]
[321456058,1712200271821,-500.0,0.00054794,120]
[321456059,1712200271830,-912.58,0.00054794,80]
[321456060,1712200271840,-500.0,0.00054794,120]
[321456061,1712200271850,-1134.63,0.00054794,120]
[321456062,1712200271862,-500.0,0.00054794,120]
[321456063,1712200271871,-867.47,0.00054794,120]
[321456064,1712200271881,-500.0,0.00054794,120]
[321456065,1712200271890,-500.0,0.00054794,120]
[321456066,1712200271900,-500.0,0.00054794,120]
[321456067,1712200271910,-500.0,0.00054794,120]
[321456068,1712200271919,-525.67753569,0.00054794,120]
[321456069,1712200271930,-1123.8,0.00054794,120]
[321456070,1712200271940,-956.39,0.00054794,120]
[321456071,1712200271950,-514.00691189,0.00054794,120]
[321456072,1712200271959,-500.0,0.00054794,120]
[321456073,1712200271969,-500.0,0.00054794,120]
[321456074,1712200271979,-521.25195865,0.00054794,120]
[321456075,1712200271988,-500.0,0.00054794,120]
[321456076,1712200271998,-151.0,0.00054794,120]
[321456077,1712200272007,-527.94138846,0.00054794,120]
[321456078,1712200272018,-500.0,0.00054794,120]
[321456079,1712200272029,-1178.01,0.00054794,120]
[321456080,1712200272039,-500.0,0.00054794,120]
[321456081,1712200272049,-500.0,0.00054794,120]
[321456082,1712200272059,-500.0,0.00054794,120]
[321456083,1712200272069,-151.0,0.00054794,120]
[321456084,1712200272079,-506.86464095,0.00054794,120]
[321456085,1712200272088,-500.0,0.00054794,120]
[321456086,1712200272099,-500.0,0.00054794,120]
[321456087,1712200272108,-517.30069418,0.00054794,120]
[321456088,1712200272118,-500.0,0.00054794,120]
[321456089,1712200272128,-509.06353648,0.00054794,120]
[321456090,1712200272137,-354.097611,0.00054794,120]
[321456091,1712200272147,-481.1502726,0.00054794,120]
[321456092,1712200272157,-1765.04,0.00054794,120]
[321456093,1712200272167,-500.0,0.00054794,120]
[321456094,1712200272177,-500.0,0.00054794,120]
[321456095,1712200272187,-500.0,0.00054794,120]
[321456096,1712200272196,-1601.82,0.00054794,120]
[321456097,1712200272206,-500.0,0.00054794,120]
[321456098,1712200272216,-354.097611,0.00054794,120]
[321456099,1712200272225,-699.49,0.00054794,120]
[321456100,1712200272235,-500.0,0.00054794,120]
[321456101,1712200272245,-500.0,0.00054794,120]
[321456102,1712200272255,-1123.23,0.00054794,120]
[321456103,1712200272265,-500.0,0.00054794,120]
[321456104,1712200272275,-1306.97,0.00054794,120]
[321456105,1712200272285,-505.81789676,0.00054794,120]
[321456106,1712200272295,-500.0,0.00054794,120]
[321456107,1712200272306,-500.0,0.00054794,120]
[321456108,1712200272317,-500.0,0.00054794,120]
[321456109,1712200272328,-155.996427,0.00054794,120]
[321456110,1712200272341,-500.0,0.00054794,120]
[321456111,1712200272352,-500.0,0.00054794,120]
[321456112,1712200272361,-541.76,0.00054794,120]
[321456113,1712200272371,-500.0,0.00054794,120]
[321456114,1712200272381,-505.67870652,0.00054794,120]
[321456115,1712200272392,-500.0,0.00054794,120]
[321456116,1712200272402,-1622.05,0.00054794,120]
[321456117,1712200272413,-654.96,0.00054794,120]
[321456118,1712200272423,-151.0,0.00054794,60]
[321456119,1712200272434,-715.64,0.00054794,120]
[321456120,1712200272446,-782.49,0.00054794,120]
[321456121,1712200272456,-646.89,0.00054794,120]
[321456122,1712200272467,-500.0,0.00054794,120]
[321456123,1712200272479,-500.0,0.00054794,120]
[321456124,1712200272490,-500.0,0.00054794,120]
[321456125,1712200272500,-500.0,0.00054794,120]
[321456126,1712200272511,-856.28,0.00054794,120]
[321456127,1712200272522,-500.0,0.00054794,120]
[321456128,1712200272533,-1403.71,0.00054794,120]
[321456129,1712200272544,-500.0,0.00054794,120]
[321456130,1712200272554,-504.04967492,0.00054794,120]
[321456131,1712200272567,-524.67140733,0.00054794,120]
[321456132,1712200272579,-500.0,0.00054794,120]
[321456133,1712200272590,-520.79117934,0.00054794,120]
[321456134,1712200272601,-699.19,0.00054794,120]
[321456135,1712200272612,-510.7,0.00054794,120]
[321456136,1712200272623,-500.0,0.00054794,120]
[321456137,1712200272633,-512.19239934,0.00054794,120]
[321456138,1712200272643,-500.0,0.00054794,120]
[321456139,1712200272653,-500.0,0.00054794,120]
[321456140,1712200272663,-500.0,0.00054794,120]
[321456141,1712200272673,-151.0,0.00054794,120]
[321456142,1712200272682,-500.0,0.00054794,120]
[321456143,1712200272691,-500.0,0.00054794,120]
[321456144,1712200272701,-500.0,0.00054794,120]
[321456145,1712200272710,-500.0,0.00054794,120]
[321456146,1712200272720,-1770.64,0.00054794,120]
[321456147,1712200272729,-500.0,0.00054794,120]
[321456148,1712200272739,-500.0,0.00054794,120]
[321456149,1712200272749,-500.0,0.00054794,120]
[321456150,1712200272759,-500.0,0.00054794,2]
[321456151,1712200272769,-500.0,0.00054794,120]
[321456152,1712200272780,-1207.23,0.00054794,30]
[321456153,1712200272790,-519.37106266,0.00054794,120]
[321456154,1712200272800,-507.1627705,0.00054794,120]
[321456155,1712200272809,-509.71210728,0.00054794,120]
[321456156,1712200272821,-500.0,0.00054794,120]
[321456157,1712200272831,-500.0,0.00054794,120]
[321456158,1712200272842,-198.86149,0.00054794,120]
[321456159,1712200272856,-500.0,0.00054794,120]
[321456160,1712200272865,-500.0,0.00054794,120]
[321456161,1712200272874,-500.0,0.00054794,120]
[321456162,1712200272884,-897.12,0.00054794,120]
[321456163,1712200272894,-198.86149,0.00054794,120]
[321456164,1712200272903,-500.0,0.00054794,120]
[321456165,1712200272913,-500.0,0.00054794,120]
[321456166,1712200272923,-500.0,0.00054794,120]
[321456167,1712200272934,-500.0,0.00054794,60]
[321456168,1712200272944,-519.44710684,0.00054794,120]
[321456169,1712200272954,-514.81639773,0.00054794,120]
[321456170,1712200272963,-794.04,0.00054794,120]
[321456171,1712200272973,-794.04,0.00054794,120]
[321456172,1712200272983,-794.04,0.00054794,120]
[321456173,1712200272993,-794.04,0.00054794,120]
[321456174,1712200273003,-794.04,0.00054794,120]
[321456175,1712200273013,-794.04,0.00054794,120]
[321456176,1712200273023,-794.04,0.00054794,120]
[321456177,1712200273033,-535.68196391,0.00054794,120]
[321456178,1712200273043,-794.04,0.00054794,120]
[321456179,1712200273053,-794.04,0.00054794,120]
[321456180,1712200273064,-500.0,0.00054794,120]
[321456181,1712200273073,-794.04,0.00054794,120]
[321456182,1712200273082,-509.29922397,0.00054794,120]
[321456183,1712200273093,-794.04,0.00054794,120]
[321456184,1712200273103,-794.04,0.00054794,120]
[321456185,1712200273113,-794.04,0.00054794,120]
[321456186,1712200273123,-794.04,0.00054794,120]
[321456187,1712200273133,-794.04,0.00054794,120]
[321456188,1712200273143,-794.04,0.00054794,120]
[321456189,1712200273153,-794.04,0.00054794,120]
[321456190,1712200273163,-500.0,0.00054794,120]
[321456191,1712200273173,-542.26720143,0.00054794,120]
[321456192,1712200273183,-794.04,0.00054794,120]
[321456193,1712200273193,-527.7539163,0.00054794,120]
[321456194,1712200273203,-794.04,0.00054794,120]
[321456195,1712200273212,-794.04,0.00054794,120]
[321456196,1712200273222,-940.76,0.00054794,120]
[321456197,1712200273231,-794.04,0.00054794,120]
[321456198,1712200273241,-794.04,0.00054794,120]
[321456199,1712200273251,-500.0,0.00054794,120]
[321456200,1712200273261,-794.04,0.00054794,120]
[321456201,1712200273270,-500.0,0.00054794,120]
[321456202,1712200273280,-794.09938943,0.00054794,120]
[321456203,1712200273290,-511.27,0.00054794,120]
[321456204,1712200273299,-521.5625665,0.00054794,120]
[321456205,1712200273561,-500.0,0.00054794,120]
[321456206,1712200273580,-500.0,0.00054794,120]
[321456207,1712200273590,-500.0,0.00054794,120]
[321456208,1712200273600,-1291.56,0.00054794,120]
[321456209,1712200273609,-500.0,0.00054794,120]
[321456210,1712200273618,-512.69663916,0.00054794,120]
[321456211,1712200273628,-500.0,0.00054794,120]
[321456212,1712200273637,-500.0,0.00054794,120]
[321456213,1712200273646,-1169.61,0.00054794,120]
[321456214,1712200273655,-151.0,0.00054794,120]
[321456215,1712200273664,-509.21503211,0.00054794,120]
[321456216,1712200273674,-1966.91,0.00054794,120]
[321456217,1712200273683,-653.18,0.00054794,120]
[321456218,1712200273692,-579.59,0.00054794,120]
[321456219,1712200273701,-888.0,0.00054794,120]
[321456220,1712200273710,-1199.82,0.00054794,120]
[321456221,1712200273719,-528.00508768,0.00054794,120]
[321456222,1712200273729,-500.0,0.00054794,120]
[321456223,1712200273739,-183.958589,0.00054794,120]
[321456224,1712200273748,-567.67,0.00054794,120]
[321456225,1712200273757,-500.0,0.00054794,120]
[321456226,1712200273767,-500.0,0.00054794,120]
[321456227,1712200273776,-500.0,0.00054794,120]
[321456228,1712200273785,-500.0,0.00054794,120]
[321456229,1712200273794,-501.07460173,0.00054794,120]
[321456230,1712200273804,-1162.9,0.00054794,120]
[321456231,1712200273815,-500.0,0.00054794,120]
[321456232,1712200273825,-500.0,0.00054794,120]
[321456233,1712200273835,-1481.02,0.00054794,120]
[321456234,1712200273845,-957.29,0.00054794,120]
[321456235,1712200273858,-536.12,0.00054794,120]
[321456236,1712200273867,-185.406329,0.00054794,120]
[321456237,1712200273877,-628.45,0.00054794,120]
[321456238,1712200273886,-500.0,0.00054794,120]
[321456239,1712200273895,-702.57,0.00054794,120]
[321456240,1712200273904,-532.29,0.00054794,120]
[321456241,1712200273914,-500.0,0.00054794,120]
[321456242,1712200273923,-500.0,0.00054794,120]
[321456243,1712200273935,-500.0,0.00054794,120]
[321456244,1712200273945,-185.406329,0.00054794,120]
[321456245,1712200273954,-1230.49,0.00054794,120]
[321456246,1712200273963,-500.0,0.00054794,120]
[321456247,1712200273972,-500.0,0.00054794,120]
[321456248,1712200273981,-500.0,0.00054794,120]
[321456249,1712200273990,-515.67045257,0.00054794,120]
[321456250,1712200274000,-1354.79,0.00054794,120]
[321456251,1712200274010,-500.0,0.00054794,120]
[321456252,1712200274020,-530.2588637,0.00054794,120]
[321456253,1712200274029,-156.151676,0.00054794,120]
[321456254,1712200274039,-500.0,0.00054794,120]
[321456255,1712200274048,-515.97866096,0.00054794,120]
[321456256,1712200274057,-500.0,0.00054794,120]
[321456257,1712200274069,-508.57256733,0.00054794,120]
[321456258,1712200274077,-508.75296016,0.00054794,120]
[321456259,1712200274086,-500.0,0.00054794,120]
[321456260,1712200274096,-500.0,0.00054794,120]
[321456261,1712200274105,-500.0,0.00054794,120]
[321456262,1712200274114,-594.72,0.00054794,120]
[321456263,1712200274124,-1168.31,0.00054794,120]
[321456264,1712200274133,-511.23643342,0.00054794,120]
[321456265,1712200274143,-745.92,0.00054794,120]
[321456266,1712200274153,-519.19,0.00054794,120]
[321456267,1712200274162,-506.94702517,0.00054794,120]
[321456268,1712200274171,-151.0,0.00054794,120]
[321456269,1712200274181,-528.70763363,0.00054794,120]
[321456270,1712200274190,-510.35,0.00054794,120]
[321456271,1712200274199,-500.0,0.00054794,120]
[321456272,1712200274208,-512.84163221,0.00054794,120]
[321456273,1712200274218,-500.0,0.00054794,120]
[321456274,1712200274227,-152.945041,0.00054794,120]
[321456275,1712200274236,-506.74151615,0.00054794,120]
[321456276,1712200274246,-538.5,0.00054794,120]
[321456277,1712200274256,-507.56568107,0.00054794,120]
[321456278,1712200274266,-500.0,0.00054794,120]
[321456279,1712200274275,-1661.46,0.00054794,120]
[321456280,1712200274285,-500.0,0.00054794,120]
[321456281,1712200274295,-810.25,0.00054794,120]
[321456282,1712200274304,-500.0,0.00054794,120]
[321456283,1712200274318,-510.34382713,0.00054794,120]
[321456284,1712200274327,-500.0,0.00054794,120]
[321456285,1712200274337,-519.27256815,0.00054794,120]
[321456286,1712200274346,-500.0,0.00054794,7]
[321456287,1712200274356,-500.0,0.00054794,120]
[321456288,1712200274366,-519.32,0.00054794,120]
[321456289,1712200274375,-640.14154669,0.00054794,120]
[321456290,1712200274385,-500.0,0.00054794,120]
[321456291,1712200274394,-856.61,0.00054794,120]
[321456292,1712200274404,-1000.0,0.00054794,120]
[321456293,1712200274414,-193.775026,0.00054794,120]
[321456294,1712200274423,-1325.1,0.00054794,120]
[321456295,1712200274432,-500.0,0.00054794,120]
[321456296,1712200274441,-150.0,0.00054794,120]
[321456297,1712200274451,-500.0,0.00054794,120]
[321456298,1712200274470,-193.775026,0.00054794,120]
[321456299,1712200274490,-500.0,0.00054794,120]
[321456300,1712200274510,-1704.02,0.00054794,120]
[321456301,1712200274531,-843.85,0.00054794,120]
[321456302,1712200274552,-500.0,0.00054794,120]
[321456303,1712200274583,-500.0,0.00054794,120]
[321456304,1712200274616,-500.0,0.00054794,120]
[321456305,1712200274646,-734.5,0.00054794,120]
[321456306,1712200274678,-1242.09,0.00054794,120]
[321456307,1712200274688,-500.0,0.00054794,120]
[321456308,1712200274698,-500.0,0.00054794,120]
[321456309,1712200274708,-500.0,0.00054794,120]
[321456310,1712200274717,-500.0,0.00054794,120]
[321456311,1712200274727,-500.0,0.00054794,120]
[321456312,1712200274736,-1149.11,0.00054794,120]
[321456313,1712200274746,-500.0,0.00054794,120]
[321456314,1712200274756,-500.0,0.00054794,120]
[321456315,1712200274766,-500.0,0.00054794,120]
[321456316,1712200274775,-801.39,0.00054794,120]
[321456317,1712200274784,-500.0,0.00054794,120]
[321456318,1712200274794,-636.22,0.00054794,120]
[321456319,1712200274803,-500.0,0.00054794,120]
[321456320,1712200274812,-500.0,0.00054794,120]
[321456321,1712200274824,-500.0,0.00054794,120]
[321456322,1712200274833,-500.0,0.00054794,120]
[321456323,1712200274842,-500.0,0.00054794,120]
[321456324,1712200274855,-500.0,0.00054794,120]
[321456325,1712200274863,-511.59093672,0.00054794,120]
[321456326,1712200274872,-1372.43,0.00054794,120]
[321456327,1712200274881,-338.216261,0.00054794,120]
[321456328,1712200274890,-500.0,0.00054794,120]
[321456329,1712200274899,-338.216261,0.00054794,120]
[321456330,1712200274908,-500.0,0.00054794,120]
[321456331,1712200274918,-500.0,0.00054794,120]
[321456332,1712200274927,-500.0,0.00054794,120]
[321456333,1712200274939,-537.70067238,0.00054794,4]
[321456334,1712200274949,-500.0,0.00054794,120]
[321456335,1712200274958,-500.0,0.00054794,120]
[321456336,1712200274967,-750.539528,0.00054794,30]
[321456337,1712200274977,-556.7,0.00054794,120]
[321456338,1712200274987,-828.45,0.00054794,120]
[321456339,1712200274996,-690.45,0.00054794,120]
[321456340,1712200275006,-1151.88,0.00054794,120]
[321456341,1712200275016,-500.0,0.00054794,2]
[321456342,1712200275026,-500.0,0.00054794,120]
[321456343,1712200275035,-500.0,0.00054794,120]
[321456344,1712200275044,-500.0,0.00054794,120]
[321456345,1712200275054,-750.539528,0.00054794,30]
[321456346,1712200275063,-223.76888,0.00054794,120]
[321456347,1712200275073,-1261.2,0.00054794,120]
[321456348,1712200275082,-500.0,0.00054794,120]
[321456349,1712200275091,-500.0,0.00054794,120]
[321456350,1712200275102,-500.0,0.00054794,120]
[321456351,1712200275111,-500.0,0.00054794,120]
[321456352,1712200275121,-500.0,0.00054794,120]
[321456353,1712200275130,-500.0,0.00054794,120]
[321456354,1712200275139,-500.0,0.00054794,120]
[321456355,1712200275148,-500.0,0.00054794,120]
[321456356,1712200275157,-500.0,0.00054794,120]
[321456357,1712200275167,-500.0,0.00054794,120]
[321456358,1712200275176,-253.36511892,0.00054794,120]
[321456359,1712200275185,-1473.05,0.00054794,120]
[321456360,1712200275195,-223.76888,0.00054794,120]
[321456361,1712200275204,-500.0,0.00054794,120]
[321456362,1712200275214,-500.0,0.00054794,120]
[321456363,1712200275223,-575.84146364,0.00054794,120]
[321456364,1712200275232,-500.0,0.00054794,120]
[321456365,1712200275242,-507.55300653,0.00054794,120]
[321456366,1712200275251,-500.0,0.00054794,120]
[321456367,1712200275261,-504.56699133,0.00054794,120]
[321456368,1712200275271,-1240.18,0.00054794,120]
[321456369,1712200275281,-500.0,0.00054794,120]
[321456370,1712200275291,-500.0,0.00054794,120]
[321456371,1712200275300,-500.0,0.00054794,120]
[321456372,1712200275310,-519.24839937,0.00054794,120]
[321456373,1712200275323,-735.68,0.00054794,120]
[321456374,1712200275333,-151.0,0.00054794,120]
[321456375,1712200275344,-151.0,0.00054794,120]
[321456376,1712200275354,-833.51,0.00054794,120]
[321456377,1712200275364,-700.88,0.00054794,120]
[321456378,1712200275374,-1814.63,0.00054794,120]
[321456379,1712200275384,-500.0,0.00054794,120]
[321456380,1712200275393,-500.0,0.00054794,120]
[321456381,1712200275403,-1000.0,0.00054794,120]
[321456382,1712200275412,-500.0,0.00054794,120]
[321456383,1712200275421,-500.0,0.00054794,120]
[321456384,1712200275431,-500.0,0.00054794,120]
[321456385,1712200275440,-500.0,0.00054794,120]
[321456386,1712200275450,-500.0,0.00054794,120]
[321456387,1712200275459,-500.0,0.00054794,120]
[321456388,1712200275468,-500.0,0.00054794,120]
[321456389,1712200275478,-174.02207098,0.00054794,120]
[321456390,1712200275488,-500.0,0.00054794,120]
[321456391,1712200275499,-982.74,0.00054794,120]
[321456392,1712200275508,-151.0,0.00054794,120]
[321456393,1712200275518,-500.0,0.00054794,120]
[321456394,1712200275528,-500.0,0.00054794,120]
[321456395,1712200275537,-979.79,0.00054794,120]
[321456396,1712200275547,-510.84316288,0.00054794,120]
[321456397,1712200275557,-545.1,0.00054794,120]
[321456398,1712200275571,-528.59107529,0.00054794,120]
[321456399,1712200275580,-543.69791195,0.00054794,120]
[321456400,1712200275589,-560.66,0.00054794,120]
[321456401,1712200275598,-500.0,0.00054794,120]
[321456402,1712200275607,-500.0,0.00054794,120]
[321456403,1712200275616,-618.23,0.00054794,120]
[321456404,1712200275625,-1375.95,0.00054794,120]
[321456405,1712200275635,-500.0,0.00054794,120]
[321456406,1712200275644,-500.0,0.00054794,120]
[321456407,1712200275653,-741.9,0.00054794,120]
[321456408,1712200275663,-500.0,0.00054794,120]
[321456409,1712200275672,-500.0,0.00054794,120]
[321456410,1712200275682,-504.14929695,0.00054794,120]
[321456411,1712200275691,-500.0,0.00054794,120]
[321456412,1712200275701,-361.491422,0.00054794,120]
[321456413,1712200275711,-540.49084751,0.00054794,120]
[321456414,1712200275721,-500.0,0.00054794,120]
[321456415,1712200275731,-505.61864461,0.00054794,120]
[321456416,1712200275741,-500.0,0.00054794,120]
[321456417,1712200275751,-361.491422,0.00054794,120]
[321456418,1712200275760,-500.0,0.00054794,120]
[321456419,1712200275770,-500.0,0.00054794,120]
[321456420,1712200275780,-1688.43,0.00054794,120]
[321456421,1712200275789,-504.8291647,0.00054794,120]
[321456422,1712200275799,-574.53742282,0.00054794,120]
[321456423,1712200275808,-1668.8,0.00054794,120]
[321456424,1712200275821,-500.0,0.00054794,120]
[321456425,1712200275830,-151.0,0.00054794,120]
[321456426,1712200275840,-500.0,0.00054794,120]
[321456427,1712200275850,-500.0,0.00054794,120]
[321456428,1712200275862,-1118.0,0.00054794,120]
[321456429,1712200275871,-1252.72,0.00054794,120]
[321456430,1712200275881,-1252.72,0.00054794,120]
[321456431,1712200275891,-500.0,0.00054794,120]
[321456432,1712200275901,-1252.72,0.00054794,120]
[321456433,1712200275911,-500.0,0.00054794,120]
[321456434,1712200275921,-1252.72,0.00054794,120]
[321456435,1712200275930,-516.79153865,0.00054794,120]
[321456436,1712200275940,-954.25,0.00054794,120]
[321456437,1712200275949,-1252.72,0.00054794,120]
[321456438,1712200275959,-151.0,0.00054794,120]
[321456439,1712200275968,-1252.72,0.00054794,120]
[321456440,1712200275977,-1252.72,0.00054794,120]
[321456441,1712200275986,-1252.72,0.00054794,120]
[321456442,1712200275998,-500.0,0.00054794,120]
[321456443,1712200276007,-1252.72,0.00054794,120]
[321456444,1712200276016,-1252.72,0.00054794,120]
[321456445,1712200276031,-1252.72,0.00054794,120]
[321456446,1712200276046,-516.79567737,0.00054794,120]
[321456447,1712200276060,-1252.72,0.00054794,120]
[321456448,1712200276074,-1252.72,0.00054794,120]
[321456449,1712200276088,-1252.72,0.00054794,120]
[321456450,1712200276103,-1252.72,0.00054794,120]
[321456451,1712200276117,-1252.72,0.00054794,120]
[321456452,1712200276131,-1252.72,0.00054794,120]
[321456453,1712200276143,-1252.72,0.00054794,120]
[321456454,1712200276155,-1252.72,0.00054794,120]
[321456455,1712200276168,-500.0,0.00054794,120]
[321456456,1712200276181,-1252.72,0.00054794,120]
[321456457,1712200276195,-1884.27,0.00054794,120]
[321456458,1712200276209,-1252.72,0.00054794,120]
[321456459,1712200276220,-1252.72,0.00054794,120]
[321456460,1712200276234,-1252.72,0.00054794,120]
[321456461,1712200276248,-1252.84429966,0.00054794,120]
[321456462,1712200276263,-1030.65,0.00054794,120]
[321456463,1712200276275,-179.888898,0.00054794,120]
[321456464,1712200276288,-500.0,0.00054794,120]
[321456465,1712200276301,-513.61727236,0.00054794,120]
[321456466,1712200276314,-619.94,0.00054794,120]
[321456467,1712200276328,-1616.86,0.00054794,120]
[321456468,1712200276343,-500.0,0.00054794,120]
[321456469,1712200276356,-500.0,0.00054794,120]
[321456470,1712200276366,-1251.78,0.00054794,120]
[321456471,1712200276377,-500.0,0.00054794,120]
[321456472,1712200276389,-511.54639559,0.00054794,120]
[321456473,1712200276402,-1329.29,0.00054794,120]
[321456474,1712200276415,-500.0,0.00054794,120]
[321456475,1712200276428,-500.0,0.00054794,120]
[321456476,1712200276439,-517.90698752,0.00054794,120]
[321456477,1712200276452,-288.633246,0.00054794,120]
[321456478,1712200276464,-500.0,0.00054794,120]
[321456479,1712200276476,-500.0,0.00054794,120]
[321456480,1712200276488,-500.0,0.00054794,120]
[321456481,1712200276500,-491.76203356,0.00054794,120]
[321456482,1712200276512,-288.633246,0.00054794,120]
[321456483,1712200276524,-151.0,0.00054794,120]
[321456484,1712200276536,-896.81,0.00054794,2]
[321456485,1712200276548,-508.0624078,0.00054794,120]
[321456486,1712200276560,-702.32,0.00054794,120]
[321456487,1712200276573,-1181.29,0.00054794,120]
[321456488,1712200276585,-1340.28,0.00054794,120]
[321456489,1712200276597,-500.0,0.00054794,120]
[321456490,1712200276609,-500.0,0.00054794,120]
[321456491,1712200276621,-495.77178308,0.00054794,120]
[321456492,1712200276633,-319.55375033,0.00054794,120]
[321456493,1712200276645,-966.98,0.00054794,120]
[321456494,1712200276657,-6357.1,0.00054794,120]
[321456495,1712200276670,-890.32,0.00054794,120]
[321456496,1712200276682,-500.0,0.00054794,120]
[321456497,1712200276693,-500.0,0.00054794,120]
[321456498,1712200276705,-500.0,0.00054794,120]
[321456499,1712200276717,-500.0,0.00054794,120]
[321456500,1712200276730,-5000.0,0.00054794,120]
[321456501,1712200276742,-509.19843879,0.00054794,120]
[321456502,1712200276754,-500.0,0.00054794,120]
[321456503,1712200276767,-1721.46,0.00054794,120]
[321456504,1712200276779,-1386.12,0.00054794,120]
[321456505,1712200276792,-151.0,0.00054794,120]
[321456506,1712200276804,-500.0,0.00054794,120]
[321456507,1712200276817,-821.48,0.00054794,120]
[321456508,1712200276829,-506.67725501,0.00054794,120]
[321456509,1712200276842,-500.0,0.00054794,120]
[321456510,1712200276857,-554.10414544,0.00054794,120]
[321456511,1712200276869,-579.431877,0.00054794,120]
[321456512,1712200276881,-500.0,0.00054794,120]
[321456513,1712200276894,-501.03559993,0.00054794,120]
[321456514,1712200276906,-512.04925839,0.00054794,120]
[321456515,1712200276918,-507.8989899,0.00054794,120]
[321456516,1712200276930,-1947.85,0.00054794,120]
[321456517,1712200276943,-959.58113459,0.00054794,120]
[321456518,1712200276955,-500.0,0.00054794,120]
[321456519,1712200276967,-500.0,0.00054794,120]
[321456520,1712200276980,-500.0,0.00054794,120]
[321456521,1712200276992,-579.431877,0.00054794,120]
[321456522,1712200277004,-500.0,0.00054794,120]
[321456523,1712200277016,-500.0,0.00054794,120]
[321456524,1712200277028,-151.901025,0.00054794,120]
[321456525,1712200277040,-1400.11,0.00054794,120]
[321456526,1712200277052,-2780.85,0.00054794,120]
[321456527,1712200277066,-2780.85,0.00054794,120]
[321456528,1712200277078,-1219.29,0.00054794,120]
[321456529,1712200277089,-500.0,0.00054794,120]
[321456530,1712200277101,-2780.85,0.00054794,120]
[321456531,1712200277113,-500.0,0.00054794,120]
[321456532,1712200277125,-2780.85,0.00054794,120]
[321456533,1712200277138,-508.58533254,0.00054794,120]